fUSD/lending_fUSD_20240501
["ID","MTS","AMOUNT","RATE_DAILY","PERIOD"]
[325169271,1714547442779,-500.0,0.00011231,2]
[325169273,1714547442789,-500.0,0.00011231,2]
[325169276,1714547442800,-500.0,0.00011231,2]
[325169278,1714547442812,-500.0,0.00011231,2]
[325169280,1714547442823,-500.0,0.00011231,2]
[325169282,1714547442838,-525.01,0.00011231,2]
[325169285,1714547442852,-500.0,0.00011231,2]
[325169288,1714547442863,-500.0,0.00011231,2]
[325169291,1714547442873,-500.0,0.00011231,2]
[325169293,1714547442883,-500.0,0.00011231,2]
[325169295,1714547442892,-500.0,0.00011231,2]
[325169297,1714547442902,-503.3022021,0.00011231,2]
[325169299,1714547442915,-500.0,0.00011231,2]
[325169301,1714547442926,-500.0,0.00011231,2]
[325169303,1714547442941,-500.0,0.00011231,2]
[325169305,1714547442951,-427.84745012,0.00011231,2]
[325169307,1714547442961,-500.0,0.00011231,2]
[325169309,1714547442972,-500.0,0.00011231,2]
[325169312,1714547442982,-500.0,0.00011231,2]
[325169314,1714547442992,-500.0,0.00011231,2]
[325169316,1714547443003,-603.39747246,0.00011231,2]
[325169318,1714547443014,-500.0,0.00011231,2]
[325169320,1714547443025,-500.0,0.00011231,2]
[325169322,1714547443036,-500.0,0.00011231,2]
[325169324,1714547443047,-500.0,0.00011231,2]
[325169326,1714547443058,-500.0,0.00011231,2]
[325169329,1714547443068,-500.0,0.00011231,2]
[325169331,1714547443080,-500.0,0.00011231,2]
[325169333,1714547443091,-500.0,0.00011231,2]
[325169335,1714547443101,-865.84,0.00011231,2]
[325169337,1714547443111,-632.81,0.00011231,2]
[325169339,1714547443122,-500.0,0.00011231,2]
[325169341,1714547443132,-500.0,0.00011231,2]
[325169343,1714547443143,-500.0,0.00011231,2]
[325169346,1714547443154,-500.0,0.00011231,2]
[325169348,1714547443164,-500.0,0.00011231,2]
[325169350,1714547443175,-500.0,0.00011231,2]
[325169352,1714547443191,-4257.14,0.00011231,2]
[325169354,1714547443202,-500.0,0.00011231,2]
[325169356,1714547443212,-500.0,0.00011231,2]
[325169358,1714547443222,-500.0,0.00011231,2]
[325169360,1714547443232,-500.0,0.00011231,2]
[325169362,1714547443242,-500.0,0.00011231,2]
[325169364,1714547443252,-500.0,0.00011231,2]
[325169367,1714547443264,-500.0,0.00011231,2]
[325169369,1714547443275,-534.82,0.00011231,2]
[325169371,1714547443284,-97.40689161,0.00011231,2]
[325169410,1714547443636,-402.59310839,0.00011231,2]
[325169413,1714547443650,-500.0,0.00011231,2]
[325169415,1714547443660,-500.0,0.00011231,2]
[325169417,1714547443670,-503.46991615,0.00011231,2]
[325169419,1714547443681,-500.0,0.00011231,2]
[325169421,1714547443697,-500.0,0.00011231,2]
[325169423,1714547443707,-500.0,0.00011231,2]
[325169425,1714547443718,-500.0,0.00011231,2]
[325169427,1714547443729,-500.0,0.00011231,2]
[325169429,1714547443739,-500.0,0.00011231,2]
[325169432,1714547443749,-500.0,0.00011231,2]
[325169434,1714547443760,-500.0,0.00011231,2]
[325169436,1714547443770,-500.0,0.00011231,2]
[325169438,1714547443781,-1007.42,0.00011231,2]
[325169440,1714547443791,-500.0,0.00011231,2]
[325169442,1714547443802,-642.59,0.00011231,2]
[325169444,1714547443813,-500.0,0.00011231,2]
[325169446,1714547443823,-500.0,0.00011231,2]
[325169448,1714547443834,-500.0,0.00011231,2]
[325169450,1714547443844,-500.0,0.00011231,2]
[325169453,1714547443855,-500.0,0.00011231,2]
[325169455,1714547443865,-500.0,0.00011231,2]
[325169457,1714547443876,-500.0,0.00011231,2]
[325169459,1714547443886,-500.0,0.00011231,2]
[325169461,1714547443896,-500.0,0.00011231,2]
[325169463,1714547443907,-500.0,0.00011231,2]
[325169465,1714547443917,-500.0,0.00011231,2]
[325169467,1714547443928,-500.0,0.00011231,2]
[325169469,1714547443941,-500.0,0.00011231,2]
[325169476,1714547443951,-500.0,0.00011231,2]
[325169482,1714547443961,-500.0,0.00011231,2]
[325169490,1714547443972,-766.92,0.00011231,2]
[325169496,1714547443982,-480.0,0.00011231,2]
[325169502,1714547443994,-500.0,0.00011231,2]
[325169507,1714547444005,-500.0,0.00011231,2]
[325169514,1714547444015,-500.0,0.00011231,2]
[325169518,1714547444026,-500.0,0.00011231,2]
[325169522,1714547444037,-500.0,0.00011231,2]
[325169526,1714547444048,-500.0,0.00011231,2]
[325169531,1714547444058,-500.0,0.00011231,2]
[325169534,1714547444070,-500.0,0.00011231,2]
[325169537,1714547444081,-500.0,0.00011231,2]
[325169540,1714547444091,-500.0,0.00011231,2]
[325169543,1714547444102,-500.0,0.00011231,2]
[325169546,1714547444112,-500.0,0.00011231,2]
[325169548,1714547444121,-500.73958296,0.00011231,2]
[325169551,1714547444131,-500.0,0.00011231,2]
[325169554,1714547444141,-500.0,0.00011231,2]
[325169557,1714547444151,-500.0,0.00011231,2]
[325169560,1714547444160,-500.0,0.00011231,2]
[325169563,1714547444170,-500.0,0.00011231,2]
[325169606,1714547444453,-500.0,0.00011231,2]
[325169611,1714547444480,-500.0,0.00011231,2]
[325169616,1714547444501,-500.0,0.00011231,2]
[325169620,1714547444512,-500.0,0.00011231,2]
[325169623,1714547444523,-500.0,0.00011231,2]
[325169628,1714547444534,-500.0,0.00011231,2]
[325169632,1714547444545,-500.0,0.00011231,2]
[325169636,1714547444555,-500.0,0.00011231,2]
[325169640,1714547444565,-500.0,0.00011231,2]
[325169644,1714547444575,-500.0,0.00011231,2]
[325169648,1714547444585,-500.0,0.00011231,2]
[325169652,1714547444596,-500.0,0.00011231,2]
[325169656,1714547444606,-500.0,0.00011231,2]
[325169658,1714547444616,-500.0,0.00011231,2]
[325169661,1714547444626,-501.84319168,0.00011231,2]
[325169665,1714547444636,-500.0,0.00011231,2]
[325169669,1714547444649,-500.0,0.00011231,2]
[325169673,1714547444659,-500.0,0.00011231,2]
[325169677,1714547444668,-616.19,0.00011231,2]
[325169681,1714547444677,-500.0,0.00011232,2]
[325169685,1714547444693,-627.31942633,0.00011232,2]
[325169689,1714547444703,-747.9,0.00011232,2]
[325169693,1714547444713,-627.89548209,0.00011232,2]
[325169697,1714547444722,-500.0,0.00011232,2]
[325169701,1714547444731,-500.0,0.00011232,2]
[325169705,1714547444741,-500.0,0.00011232,2]
[325169709,1714547444751,-500.0,0.00011232,2]
[325169713,1714547444760,-500.0,0.00011232,2]
[325169717,1714547444770,-453.70623802,0.00011232,2]
[325169720,1714547444784,-292.01542491,0.00011232,2]
[325169723,1714547444794,-500.0,0.00011232,2]
[325169726,1714547444805,-500.0,0.00011232,2]
[325169729,1714547444815,-500.0,0.00011232,2]
[325169732,1714547444825,-814.02,0.00011232,2]
[325169736,1714547444835,-152.19,0.00011266,2]
[325169740,1714547444845,-431.57,0.00011312,2]
[325169744,1714547444855,-193.49,0.00011492,2]
[325169748,1714547444864,-500.0,0.00011504,2]
[325169752,1714547444874,-592.91,0.00011504,2]
[325169756,1714547444883,-500.0,0.00011504,2]
[325169760,1714547444893,-500.0,0.00011504,2]
[325169764,1714547444902,-578.76,0.00011504,2]
[325169768,1714547444912,-500.0,0.00011504,2]
[325169772,1714547444921,-500.0,0.00011504,2]
[325169776,1714547444931,-265.13631748,0.00011504,2]
[325169780,1714547444946,-500.0,0.00011504,2]
[325169784,1714547444954,-1503.61,0.00011504,2]
[325169787,1714547444963,-500.0,0.00011504,2]
[325169791,1714547444973,-500.0,0.00011504,2]
[325169794,1714547444983,-896.96,0.00011504,2]
[325169797,1714547444993,-1193.01,0.00011504,2]
[325169800,1714547445003,-1146.11,0.00011504,2]
[325169803,1714547445012,-500.0,0.00011504,2]
[325169806,1714547445021,-1496.13,0.00011504,2]
[325169809,1714547445032,-500.0,0.00011504,2]
[325169812,1714547445041,-558.34,0.00011504,2]
[325169815,1714547445051,-500.0,0.00011504,2]
[325169818,1714547445061,-1605.7,0.00011504,2]
[325169821,1714547445070,-500.0,0.00011504,2]
[325169824,1714547445080,-573.69,0.00011504,2]
[325169827,1714547445089,-1285.89,0.00011504,2]
[325169830,1714547445099,-553.21,0.00011504,2]
[325169833,1714547445108,-500.0,0.00011504,2]
[325169836,1714547445119,-500.0,0.00011504,2]
[325169839,1714547445128,-500.0,0.00011504,2]
[325169842,1714547445137,-500.0,0.00011504,2]
[325169845,1714547445147,-806.94,0.00011504,2]
[325169848,1714547445157,-178.20666518,0.00011504,2]
[325169851,1714547445167,-273.5947789,0.00011504,2]
[325169853,1714547445176,-1127.5,0.00011504,2]
[325169856,1714547445189,-674.62,0.00011504,2]
[325169859,1714547445199,-550.31,0.00011504,2]
[325169862,1714547445208,-1223.66,0.00011504,2]
[325169864,1714547445218,-5405.0,0.00011504,2]
[325169866,1714547445227,-5754.83,0.00011504,2]
[325169868,1714547445237,-741.85,0.00011504,2]
[325169870,1714547445248,-500.0,0.00011504,2]
[325169872,1714547445258,-581.98,0.00011504,2]
[325169874,1714547445267,-500.0,0.00011504,2]
[325169876,1714547445276,-500.0,0.00011504,2]
[325169878,1714547445285,-500.0,0.00011504,2]
[325169880,1714547445294,-500.0,0.00011504,2]
[325169882,1714547445303,-500.0,0.00011504,2]
[325169884,1714547445312,-500.0,0.00011504,2]
[325169886,1714547445322,-500.0,0.00011505,2]
[325169888,1714547445331,-500.0,0.00011505,2]
[325169890,1714547445340,-500.0,0.00011505,2]
[325169892,1714547445349,-500.0,0.00011505,2]
[325169894,1714547445359,-500.0,0.00011505,2]
[325169896,1714547445368,-500.0,0.00011505,2]
[325169898,1714547445377,-500.0,0.00011505,2]
[325169900,1714547445388,-500.0,0.00011505,2]
[325169902,1714547445399,-500.0,0.00011505,2]
[325169904,1714547445408,-321.09628221,0.00011505,2]
[325169906,1714547445417,-343.16933004,0.00011505,2]
[325169908,1714547445427,-500.0,0.00011505,2]
[325169910,1714547445439,-500.0,0.00011505,2]
[325169912,1714547445448,-500.0,0.00011505,2]
[325169914,1714547445457,-500.0,0.00011505,2]
[325169916,1714547445467,-500.0,0.00011505,2]
[325169918,1714547445475,-500.0,0.00011505,2]
[325169920,1714547445485,-4737.29,0.00011505,2]
[325169922,1714547445494,-500.0,0.00011505,2]
[325169924,1714547445503,-1455.81,0.00011505,2]
[325169926,1714547445513,-500.0,0.00011505,2]
[325169928,1714547445522,-500.0,0.00011505,2]
[325169930,1714547445532,-500.0,0.00011505,2]
[325169932,1714547445541,-500.0,0.00011505,2]
[325169934,1714547445551,-500.0,0.00011505,2]
[325169936,1714547445560,-500.0,0.00011505,2]
[325169938,1714547445569,-2386.64,0.00011505,2]
[325169940,1714547445579,-500.0,0.00011505,2]
[325169942,1714547445588,-528.66,0.00011505,2]
[325169944,1714547445599,-500.0,0.00011505,2]
[325169946,1714547445610,-500.0,0.00011505,2]
[325169948,1714547445619,-500.0,0.00011505,2]
[325169950,1714547445628,-500.0,0.00011505,2]
[325169952,1714547445637,-500.0,0.00011505,2]
[325169954,1714547445651,-500.0,0.00011505,2]
[325169956,1714547445660,-2877.88,0.00011505,2]
[325169958,1714547445669,-500.0,0.00011505,2]
[325169960,1714547445679,-500.0,0.00011505,2]
[325169962,1714547445691,-893.82,0.00011505,2]
[325169964,1714547445700,-500.0,0.00011505,2]
[325169966,1714547445709,-500.0,0.00011505,2]
[325169968,1714547445718,-5856.37,0.00011505,2]
[325169970,1714547445728,-500.0,0.00011505,2]
[325169972,1714547445739,-500.0,0.00011505,2]
[325169974,1714547445748,-500.0,0.00011505,2]
[325169976,1714547445758,-525.01,0.00011505,2]
[325169978,1714547445768,-500.0,0.00011505,2]
[325169980,1714547445777,-500.0,0.00011505,2]
[325169982,1714547445787,-500.0,0.00011505,2]
[325169984,1714547445796,-500.0,0.00011505,2]
[325169986,1714547445805,-500.0,0.00011505,2]
[325169988,1714547445816,-632.81,0.00011505,2]
[325169990,1714547445826,-865.84,0.00011505,2]
[325169992,1714547445835,-4257.14,0.00011505,2]
[325169994,1714547445845,-500.0,0.00011505,2]
[325169996,1714547445855,-534.82,0.00011505,2]
[325169998,1714547445864,-500.0,0.00011505,2]
[325170000,1714547445874,-500.0,0.00011505,2]
[325170002,1714547445884,-500.0,0.00011505,2]
[325170004,1714547445894,-1007.42,0.00011505,2]
[325170006,1714547445904,-642.59,0.00011505,2]
[325170008,1714547445914,-500.0,0.00011505,2]
[325170010,1714547445923,-766.92,0.00011505,2]
[325170012,1714547445934,-500.0,0.00011505,2]
[325170014,1714547445949,-370.64772252,0.00011505,2]
[325170016,1714547445958,-500.0,0.00011505,2]
[325170018,1714547445969,-500.0,0.00011505,2]
[325170020,1714547445979,-500.0,0.00011505,2]
[325170022,1714547445988,-500.0,0.00011505,2]
[325170024,1714547445998,-500.0,0.00011505,2]
[325170026,1714547446007,-500.0,0.00011505,2]
[325170028,1714547446017,-616.19,0.00011505,2]
[325170030,1714547446026,-500.0,0.00011506,2]
[325170032,1714547446035,-747.9,0.00011506,2]
[325170034,1714547446044,-500.0,0.00011506,2]
[325170036,1714547446054,-500.0,0.00011506,2]
[325170039,1714547446064,-500.0,0.00011506,2]
[325170042,1714547446073,-500.0,0.00011506,2]
[325170045,1714547446082,-500.0,0.00011506,2]
[325170048,1714547446091,-500.0,0.00011506,2]
[325170051,1714547446101,-814.02,0.00011506,2]
[325170054,1714547446111,-179.12,0.00011757,2]
[325170057,1714547446120,-500.0,0.00011778,2]
[325170059,1714547446129,-592.91,0.00011778,2]
[325170061,1714547446139,-500.0,0.00011778,2]
[325170063,1714547446148,-500.0,0.00011778,2]
[325170065,1714547446158,-578.76,0.00011778,2]
[325170067,1714547446167,-500.0,0.00011778,2]
[325170069,1714547446177,-500.0,0.00011778,2]
[325170071,1714547446190,-1503.61,0.00011778,2]
[325170074,1714547446200,-500.0,0.00011778,2]
[325170076,1714547446210,-500.0,0.00011778,2]
[325170078,1714547446219,-896.96,0.00011778,2]
[325170080,1714547446229,-1193.01,0.00011778,2]
[325170082,1714547446238,-1146.11,0.00011778,2]
[325170084,1714547446248,-500.0,0.00011778,2]
[325170086,1714547446257,-1496.13,0.00011778,2]
[325170088,1714547446267,-500.0,0.00011778,2]
[325170090,1714547446276,-558.34,0.00011778,2]
[325170092,1714547446285,-329.80339411,0.00011778,2]
[325170094,1714547446295,-1605.7,0.00011778,2]
[325170096,1714547446304,-500.0,0.00011778,2]
[325170098,1714547446313,-573.69,0.00011778,2]
[325170100,1714547446322,-1285.89,0.00011778,2]
[325170102,1714547446332,-553.21,0.00011778,2]
[325170104,1714547446341,-500.0,0.00011778,2]
[325170105,1714547446350,-500.0,0.00011778,2]
[325170107,1714547446359,-500.0,0.00011778,2]
[325170109,1714547446368,-500.0,0.00011778,2]
[325170111,1714547446378,-806.94,0.00011778,2]
[325170113,1714547446387,-1127.5,0.00011778,2]
[325170115,1714547446396,-674.62,0.00011778,2]
[325170116,1714547446406,-550.31,0.00011778,2]
[325170117,1714547446416,-1223.66,0.00011778,2]
[325170118,1714547446425,-5405.0,0.00011778,2]
[325170119,1714547446436,-5754.83,0.00011778,2]
[325170120,1714547446446,-741.85,0.00011778,2]
[325170121,1714547446455,-500.0,0.00011778,2]
[325170122,1714547446464,-581.98,0.00011778,2]
[325170123,1714547446474,-500.0,0.00011778,2]
[325170125,1714547446483,-500.0,0.00011778,2]
[325170127,1714547446492,-500.0,0.00011778,2]
[325170129,1714547446501,-500.0,0.00011778,2]
[325170131,1714547446511,-500.0,0.00011778,2]
[325170133,1714547446520,-500.0,0.00011778,2]
[325170135,1714547446530,-500.0,0.00011779,2]
[325170137,1714547446539,-553.92,0.00011779,2]
[325170139,1714547446549,-500.0,0.00011779,2]
[325170141,1714547446558,-500.0,0.00011779,2]
[325170143,1714547446568,-500.0,0.00011779,2]
[325170145,1714547446577,-528.7212351,0.00011779,2]
[325170147,1714547446586,-500.0,0.00011779,2]
[325170149,1714547446596,-500.0,0.00011779,2]
[325170151,1714547446608,-4737.29,0.00011779,2]
[325170153,1714547446618,-500.0,0.00011779,2]
[325170155,1714547446627,-1455.81,0.00011779,2]
[325170157,1714547446636,-500.0,0.00011779,2]
[325170159,1714547446650,-500.0,0.00011779,2]
[325170161,1714547446659,-500.0,0.00011779,2]
[325170163,1714547446668,-500.0,0.00011779,2]
[325170165,1714547446677,-325.01,0.00011779,2]
[325170167,1714547446689,-2386.64,0.00011779,2]
[325170169,1714547446699,-500.0,0.00011779,2]
[325170171,1714547446708,-528.66,0.00011779,2]
[325170173,1714547446718,-500.0,0.00011779,2]
[325170175,1714547446728,-500.0,0.00011779,2]
[325170177,1714547446738,-500.0,0.00011779,2]
[325170179,1714547446747,-500.0,0.00011779,2]
[325170181,1714547446756,-500.0,0.00011779,2]
[325170183,1714547446766,-500.0,0.00011779,2]
[325170185,1714547446776,-2877.88,0.00011779,2]
[325170187,1714547446785,-500.0,0.00011779,2]
[325170189,1714547446795,-500.0,0.00011779,2]
[325170191,1714547446804,-893.82,0.00011779,2]
[325170193,1714547446815,-500.0,0.00011779,2]
[325170195,1714547446824,-500.0,0.00011779,2]
[325170197,1714547446835,-5856.37,0.00011779,2]
[325170199,1714547446844,-500.0,0.00011779,2]
[325170201,1714547446854,-500.0,0.00011779,2]
[325170203,1714547446863,-500.0,0.00011779,2]
[325170205,1714547446873,-525.01,0.00011779,2]
[325170207,1714547446882,-500.0,0.00011779,2]
[325170209,1714547446892,-414.45494992,0.00011779,2]
[325170211,1714547446902,-500.0,0.00011779,2]
[325170213,1714547446911,-500.0,0.00011779,2]
[325170215,1714547446922,-865.84,0.00011779,2]
[325170217,1714547446931,-632.81,0.00011779,2]
[325170219,1714547446945,-4257.14,0.00011779,2]
[325170221,1714547446955,-500.0,0.00011779,2]
[325170223,1714547446964,-534.82,0.00011779,2]
[325170225,1714547446974,-500.0,0.00011779,2]
[325170227,1714547446983,-531.24,0.00011779,2]
[325170230,1714547446993,-500.0,0.00011779,2]
[325170231,1714547447003,-1007.42,0.00011779,2]
[325170234,1714547447012,-642.59,0.00011779,2]
[325170236,1714547447022,-500.0,0.00011779,2]
[325170238,1714547447032,-766.92,0.00011779,2]
[325170240,1714547447042,-500.0,0.00011779,2]
[325170242,1714547447052,-500.0,0.00011779,2]
[325170244,1714547447061,-625.29144169,0.00011779,2]
[325170246,1714547447070,-240.42396585,0.00011779,2]
[325170248,1714547447079,-500.0,0.00011779,2]
[325170249,1714547447089,-500.0,0.00011779,2]
[325170252,1714547447098,-500.0,0.00011779,2]
[325170254,1714547447108,-616.19,0.00011779,2]
[325170256,1714547447117,-500.0,0.0001178,2]
[325170258,1714547447126,-747.9,0.0001178,2]
[325170260,1714547447135,-500.0,0.0001178,2]
[325170262,1714547447145,-500.0,0.0001178,2]
[325170264,1714547447154,-183.22004964,0.0001178,2]
[325170266,1714547447163,-814.02,0.0001178,2]
[325170268,1714547447172,-19172.98029079,0.000118,2]
[325170270,1714547447181,-17981.00321283,0.000119,2]
[325170271,1714547447196,-374.459,0.00011946,2]
[325170273,1714547447206,-186.037,0.00011946,2]
[325170275,1714547447215,-600.0,0.00011977,2]
[325170278,1714547447227,-5000.0,0.00012,2]
[325170279,1714547447237,-400.0,0.00012,4]
[325170281,1714547447248,-500.0,0.00012052,2]
[325170283,1714547447258,-592.91,0.00012052,2]
[325170285,1714547447268,-500.0,0.00012052,2]
[325170287,1714547447279,-500.0,0.00012052,2]
[325170290,1714547447291,-578.76,0.00012052,2]
[325170292,1714547447302,-500.0,0.00012052,2]
[325170294,1714547447313,-500.0,0.00012052,2]
[325170296,1714547447323,-1503.61,0.00012052,2]
[325170298,1714547447334,-500.0,0.00012052,2]
[325170300,1714547447344,-500.0,0.00012052,2]
[325170302,1714547447355,-896.96,0.00012052,2]
[325170304,1714547447365,-1193.01,0.00012052,2]
[325170306,1714547447374,-1146.11,0.00012052,2]
[325170308,1714547447383,-500.0,0.00012052,2]
[325170310,1714547447392,-1496.13,0.00012052,2]
[325170312,1714547447401,-500.0,0.00012052,2]
[325170314,1714547447411,-558.34,0.00012052,2]
[325170316,1714547447420,-1605.7,0.00012052,2]
[325170317,1714547447429,-500.0,0.00012052,2]
[325170319,1714547447444,-573.69,0.00012052,2]
[325170322,1714547447453,-1285.89,0.00012052,2]
[325170324,1714547447462,-553.21,0.00012052,2]
[325170325,1714547447472,-500.0,0.00012052,2]
[325170328,1714547447482,-500.0,0.00012052,2]
[325170330,1714547447491,-500.0,0.00012052,2]
[325170332,1714547447500,-500.0,0.00012052,2]
[325170334,1714547447510,-806.94,0.00012052,2]
[325170337,1714547447532,-1127.5,0.00012052,2]
[325170339,1714547447543,-674.62,0.00012052,2]
[325170341,1714547447553,-550.31,0.00012052,2]
[325170343,1714547447564,-1223.66,0.00012052,2]
[325170346,1714547447574,-5405.0,0.00012052,2]
[325170348,1714547447583,-5754.83,0.00012052,2]
[325170350,1714547447593,-741.85,0.00012052,2]
[325170352,1714547447608,-500.0,0.00012052,2]
[325170354,1714547447618,-581.98,0.00012052,2]
[325170356,1714547447627,-500.0,0.00012052,2]
[325170358,1714547447637,-500.0,0.00012052,2]
[325170360,1714547447649,-500.0,0.00012052,2]
[325170362,1714547447659,-500.0,0.00012052,2]
[325170364,1714547447669,-500.0,0.00012052,2]
[325170366,1714547447680,-500.0,0.00012053,2]
[325170368,1714547447693,-500.0,0.00012053,2]
[325170370,1714547447703,-500.0,0.00012053,2]
[325170372,1714547447714,-500.0,0.00012053,2]
[325170374,1714547447724,-500.0,0.00012053,2]
[325170377,1714547447734,-4737.29,0.00012053,2]
[325170379,1714547447744,-500.0,0.00012053,2]
[325170381,1714547447754,-1455.81,0.00012053,2]
[325170383,1714547447763,-500.0,0.00012053,2]
[325170385,1714547447773,-500.0,0.00012053,2]
[325170387,1714547447783,-500.0,0.00012053,2]
[325170389,1714547447792,-500.0,0.00012053,2]
[325170391,1714547447802,-2386.64,0.00012053,2]
[325170393,1714547447812,-602.40545063,0.00012053,2]
[325170395,1714547447822,-528.66,0.00012053,2]
[325170397,1714547447832,-500.0,0.00012053,2]
[325170399,1714547447843,-500.0,0.00012053,2]
[325170401,1714547447854,-500.0,0.00012053,2]
[325170403,1714547447865,-500.0,0.00012053,2]
[325170424,1714547448062,-500.0,0.00012053,2]
[325170426,1714547448073,-500.0,0.00012053,2]
[325170429,1714547448084,-2877.88,0.00012053,2]
[325170431,1714547448097,-500.0,0.00012053,2]
[325170433,1714547448108,-514.97,0.00012053,2]
[325170435,1714547448117,-893.82,0.00012053,2]
[325170437,1714547448127,-500.0,0.00012053,2]
[325170439,1714547448136,-500.0,0.00012053,2]
[325170441,1714547448146,-5856.37,0.00012053,2]
[325170443,1714547448156,-500.0,0.00012053,2]
[325170446,1714547448166,-500.0,0.00012053,2]
[325170448,1714547448175,-500.0,0.00012053,2]
[325170450,1714547448185,-525.01,0.00012053,2]
[325170452,1714547448198,-500.0,0.00012053,2]
[325170454,1714547448207,-500.0,0.00012053,2]
[325170456,1714547448217,-500.0,0.00012053,2]
[325170458,1714547448227,-865.84,0.00012053,2]
[325170460,1714547448236,-632.81,0.00012053,2]
[325170462,1714547448245,-4257.14,0.00012053,2]
[325170464,1714547448255,-500.0,0.00012053,2]
[325170465,1714547448264,-534.82,0.00012053,2]
[325170466,1714547448274,-500.0,0.00012053,2]
[325170467,1714547448284,-500.0,0.00012053,2]
[325170468,1714547448293,-1007.42,0.00012053,2]
[325170469,1714547448302,-642.59,0.00012053,2]
[325170470,1714547448311,-500.0,0.00012053,2]
[325170471,1714547448321,-766.92,0.00012053,2]
[325170472,1714547448330,-500.0,0.00012053,2]
[325170474,1714547448339,-500.0,0.00012053,2]
[325170478,1714547448349,-500.0,0.00012053,2]
[325170482,1714547448359,-500.0,0.00012053,2]
[325170486,1714547448368,-616.19,0.00012053,2]
[325170490,1714547448378,-500.0,0.00012054,2]
[325170493,1714547448387,-747.9,0.00012054,2]
[325170497,1714547448396,-500.0,0.00012054,2]
[325170502,1714547448406,-500.0,0.00012054,2]
[325170505,1714547448416,-814.02,0.00012054,2]
[325170508,1714547448426,-800.0,0.000121,4]
[325170511,1714547448438,-970.0,0.00012151,2]
[325170514,1714547448448,-2298.0,0.00012151,2]
[325170517,1714547448457,-462.0,0.00012151,2]
[325170519,1714547448466,-1395.0,0.00012151,2]
[325170522,1714547448475,-1258.0,0.00012151,2]
[325170525,1714547448485,-542.0,0.00012151,2]
[325170528,1714547448494,-177.609,0.00012151,2]
[325170531,1714547448503,-808.0,0.00012151,2]
[325170534,1714547448512,-435.857,0.00012151,2]
[325170537,1714547448521,-610.0,0.00012151,2]
[325170539,1714547448531,-1861.0,0.00012151,2]
[325170541,1714547448541,-1300.0,0.000122,4]
[325170543,1714547448553,-326.99,0.00012219,2]
[325170545,1714547448563,-1700.0,0.000123,4]
[325170547,1714547448573,-500.0,0.00012326,2]
[325170549,1714547448582,-592.91,0.00012326,2]
[325170551,1714547448592,-500.0,0.00012326,2]
[325170554,1714547448605,-500.0,0.00012326,2]
[325170556,1714547448614,-578.76,0.00012326,2]
[325170558,1714547448624,-500.0,0.00012326,2]
[325170560,1714547448633,-254.48892472,0.00012326,2]
[325170562,1714547448647,-1503.61,0.00012326,2]